bitfinex/quotes_ETHUSD_20250517
["timestamp","ask_amount","ask_price","bid_price","bid_amount"]
[1747520293752,12.1806328,2465.1,2464.8,0.7975]
[1747520294485,8.124,2465.1,2464.8,0.7975]
[1747520294652,4.05679568,2465.0,2464.8,0.7975]
[1747520294847,8.124,2465.1,2464.6,0.8061]
[1747520295084,4.05681912,2465.0,2464.6,0.8061]
[1747520295263,4.05681912,2465.0,2464.7,0.48685747]
[1747520295458,8.124,2465.1,2464.7,0.48685747]
[1747520296091,8.124,2465.1,2464.7,4.54408166]
[1747520297195,4.05639051,2465.3,2464.8,4.05702319]
[1747520297493,8.124,2465.4,2465.0,4.05672041]
[1747520297655,12.18014876,2465.4,2465.0,0.76379594]
[1747520297860,4.05631187,2465.3,2465.0,0.76379594]
[1747520298797,12.18023137,2465.4,2465.0,0.76379594]
[1747520299157,8.124,2465.4,2465.0,4.82047007]
[1747520300611,9.38333333,2466.1,2465.2,2.77513902]
[1747520300904,9.38333333,2466.1,2465.9,4.05521821]
[1747520301106,9.38333333,2466.5,2465.9,2.77513902]
[1747520301391,9.38333333,2466.5,2466.2,4.8608357]
[1747520301605,9.38333333,2466.5,2466.2,0.8061]
[1747520301806,9.38333333,2466.5,2466.2,5.3469419]
[1747520301987,9.38333333,2466.5,2466.2,1.29220015]
[1747520303013,9.38333333,2466.5,2466.2,5.34699903]
[1747520303321,8.59781181,2466.7,2466.2,5.34699903]
[1747520303322,0.47481181,2466.7,2466.3,4.05465677]
[1747520303628,0.47481181,2466.7,2466.6,4.86026362]
[1747520304376,1.99722143,2467.0,2466.8,4.05383492]
[1747520304621,1.99722143,2467.0,2466.7,4.05392167]
[1747520305119,6.0508045,2467.0,2466.6,0.8061]
[1747520305417,1.99722143,2467.0,2466.6,4.86017631]
[1747520305586,1.99722143,2467.0,2466.6,6.02915057]
[1747520305790,1.99722143,2467.0,2466.7,4.05399006]
[1747520306024,8.121,2467.1,2466.7,4.05399006]
[1747520306378,8.121,2467.1,2466.6,6.02915114]
[1747520306790,4.05350628,2467.0,2466.6,0.8061]
[1747520307078,4.05416772,2466.6,2466.2,3.53783902]
[1747520307678,4.05401795,2466.7,2466.2,3.53783902]
[1747520307877,4.05407427,2466.7,2466.2,7.59263668]
[1747520308199,12.1741665,2466.6,2466.2,4.70261386]
[1747520308603,8.12,2466.6,2465.9,2.77513902]
[1747520308818,4.05490866,2466.2,2465.9,2.77513902]
[1747520309423,4.05460873,2466.4,2465.9,2.77513902]
[1747520309424,4.05463722,2466.4,2465.9,2.77513902]
[1747520309618,4.05495747,2466.2,2465.9,2.77513902]
[1747520309781,4.05495747,2466.2,2465.8,1.24700741]
[1747520309782,8.119,2466.1,2465.8,0.48430741]
[1747520309988,12.17407439,2466.1,2465.6,6.83092039]
[1747520310218,8.119,2466.1,2465.5,0.8072]
[1747520310538,16.239,2466.1,2465.5,0.8072]
[1747520310834,17.38333333,2466.0,2465.0,0.8072]
[1747520311038,4.05539164,2465.9,2465.2,6.83160258]
[1747520311184,4.05549678,2465.8,2465.3,4.73939772]
[1747520311383,20.29440188,2465.9,2465.4,4.05612051]
[1747520311842,4.05549007,2465.8,2465.3,4.73936951]
[1747520312438,20.29439023,2465.9,2465.4,4.05604308]
[1747520312738,4.05551506,2465.8,2465.4,1.15705516]
[1747520314926,20.29435731,2465.9,2465.4,5.21311896]
[1747520315104,16.239,2465.9,2465.5,4.05590932]
[1747520315425,16.239,2465.9,2465.4,5.21311896]
[1747520315426,20.29435512,2465.9,2465.4,5.21311896]
[1747520315826,4.05548407,2465.8,2465.4,5.21311896]
[1747520316127,20.29439874,2465.9,2465.4,5.21311896]
[1747520317225,4.05548244,2465.8,2465.4,5.21311896]
[1747520317425,4.05548244,2465.8,2464.7,0.8074]
[1747520317426,4.05664732,2465.1,2464.7,0.8074]
[1747520317626,9.38333333,2465.1,2464.5,0.48930741]
[1747520318123,4.05745354,2464.6,2464.5,0.48930741]
[1747520318329,12.17645354,2464.6,2464.5,0.48930741]
[1747520319992,20.17645354,2464.6,2464.5,0.48930741]
[1747520320232,20.17645354,2464.6,2464.5,0.005]
[1747520321094,20.72645354,2464.6,2464.5,0.005]
[1747520321633,55.70950154,2464.6,2464.5,0.005]
[1747520321835,56.04917787,2464.6,2464.5,0.005]
[1747520322599,53.63020187,2464.6,2464.5,0.005]
[1747520323694,49.83371187,2464.6,2464.5,0.005]
[1747520323901,52.22519687,2464.6,2464.5,0.005]
[1747520325527,4.05778282,2464.4,2464.3,0.005]
[1747520325825,16.42945082,2464.4,2464.3,0.005]
[1747520326030,23.73345082,2464.4,2464.3,0.005]
[1747520326200,20.17978282,2464.4,2464.3,0.005]
[1747520326401,23.11142482,2464.4,2464.3,0.005]
[1747520327234,23.0060308,2464.4,2464.3,0.005]
[1747520327441,23.5560308,2464.4,2464.3,0.005]
[1747520328897,23.5580308,2464.4,2464.3,0.005]
[1747520329235,12.18178282,2464.4,2464.3,0.005]
[1747520329405,20.30478282,2464.4,2464.3,0.005]
[1747520329729,16.247,2464.4,2464.3,0.005]
[1747520330044,4.05778282,2464.4,2464.3,0.005]
[1747520330201,8.0,2464.5,2464.3,0.005]
[1747520330407,8.124,2464.5,2464.3,0.005]
[1747520330603,8.124,2464.5,2464.4,0.8156]
[1747520331100,4.05778282,2464.4,2464.3,0.005]
[1747520331319,8.124,2464.5,2464.3,0.005]
[1747520331735,13.44083135,2464.6,2464.3,0.005]
[1747520331941,8.123,2464.5,2464.3,0.005]
[1747520332629,8.123,2464.5,2464.3,0.49337087]
[1747520332824,8.123,2464.5,2464.3,0.005]
[1747520332825,12.18069168,2464.5,2464.3,0.005]
[1747520333029,8.123,2464.5,2464.3,0.005]
[1747520333224,12.18068763,2464.5,2464.3,0.005]
[1747520333543,4.05778282,2464.4,2464.3,0.005]
[1747520335035,21.44111615,2464.4,2464.3,0.005]
[1747520337614,29.68811615,2464.4,2464.3,0.005]
[1747520337815,8.123,2464.4,2464.3,0.005]
[1747520338045,12.18078282,2464.4,2464.3,0.005]
[1747520340420,8.123,2464.4,2464.3,0.005]
[1747520340619,8.123,2464.6,2464.3,0.005]
[1747520340929,8.123,2464.7,2464.4,4.83183922]
[1747520341257,8.124,2464.8,2464.5,4.05751667]
[1747520341455,16.247,2464.8,2464.4,0.7741]
[1747520341753,4.36587239,2465.0,2464.7,4.83138891]
[1747520341960,4.36587239,2465.0,2464.9,4.05695971]
[1747520342254,21.58325977,2466.0,2465.4,0.7741]
[1747520342457,9.38333333,2466.1,2465.4,0.7741]
[1747520342664,9.38333333,2466.1,2465.9,4.82941236]
[1747520342961,8.75508241,2466.3,2465.9,0.7741]
[1747520342962,8.122,2466.3,2465.9,0.7741]
[1747520343167,4.05482118,2466.2,2465.6,0.8143]
[1747520343330,4.05482118,2466.2,2465.1,4.05649866]
[1747520343331,4.05564342,2465.7,2465.1,4.05649866]
[1747520343535,4.05564342,2465.7,2465.2,6.36618389]
[1747520344057,12.17756259,2465.8,2465.3,4.05621674]
[1747520344266,4.05568578,2465.7,2465.2,6.36615019]
[1747520344959,12.17750167,2465.8,2465.3,4.05626096]
[1747520345385,4.0556662,2465.7,2465.2,6.36614396]
[1747520345558,4.0556662,2465.7,2465.3,0.6366144]
[1747520345760,4.05612479,2465.5,2465.2,2.30976377]
[1747520345962,4.05612479,2465.5,2465.2,0.8143]
[1747520346547,4.05586358,2465.6,2465.2,0.8143]
[1747520347565,4.05630146,2465.3,2465.2,0.8143]
[1747520347869,4.05667105,2465.1,2464.9,0.8143]
[1747520348069,4.05679513,2465.0,2464.7,0.48430741]
[1747520348267,4.05669273,2465.1,2464.7,1.0841384]
[1747520348469,4.05650459,2465.2,2464.7,5.14140004]
[1747520349163,4.05650459,2465.2,2464.7,4.65709263]
[1747520349734,4.05696564,2464.9,2464.7,0.59983099]
[1747520349934,4.05696564,2464.9,2464.6,0.8143]
[1747520350445,4.05650005,2465.2,2464.6,0.8143]
[1747520350657,4.05671261,2465.1,2464.6,4.87166167]
[1747520350833,9.38333333,2465.6,2464.7,6.97322942]
[1747520351037,9.38333333,2465.6,2465.3,4.05621193]
[1747520351330,17.50233333,2465.6,2465.2,4.05637992]
[1747520351527,21.55814619,2465.6,2465.1,4.87083112]
[1747520351735,4.05621898,2465.4,2465.1,1.99459551]
[1747520351935,17.50233333,2465.6,2464.8,0.8143]
[1747520352171,8.0,2465.5,2464.8,0.8143]
[1747520352360,4.05616458,2465.4,2464.9,4.05685696]
[1747520352531,4.05630913,2465.3,2464.9,4.05685696]
[1747520352734,4.05630913,2465.3,2464.8,4.87133298]
[1747520352970,12.17523113,2465.4,2464.9,5.2373445]
[1747520353573,12.17516057,2465.4,2464.9,5.23726639]
[1747520353773,8.119,2465.4,2465.0,4.05667627]
[1747520353956,8.119,2465.4,2465.0,4.05679513]
[1747520354157,8.119,2465.4,2465.1,4.05660847]
[1747520354364,8.119,2465.4,2465.1,4.96271491]
[1747520354859,12.17521912,2465.4,2465.1,0.90610644]
[1747520355571,12.17521912,2465.4,2464.9,5.23728152]
[1747520355572,8.119,2465.4,2465.0,4.05677409]
[1747520355776,12.17514578,2465.4,2465.0,4.05677409]
[1747520356571,12.17514578,2465.4,2464.9,5.23728202]
[1747520357465,12.17515263,2465.4,2465.0,4.05670274]
[1747520357643,12.17515263,2465.4,2464.9,5.23723309]
[1747520357973,12.17515263,2465.4,2465.0,1.01086234]
[1747520358646,12.17514319,2465.4,2465.0,5.06758924]
[1747520358850,8.119,2465.4,2465.0,5.06758924]
[1747520359185,12.17517372,2465.4,2465.0,1.01086234]
[1747520359740,4.05634349,2465.3,2465.0,1.01086234]
[1747520359940,4.05634349,2465.3,2464.9,4.05694539]
[1747520361950,12.1752134,2465.4,2465.0,4.05676647]
[1747520362146,8.119,2465.4,2465.0,4.05676647]
[1747520362673,8.119,2465.4,2464.8,4.87136783]
[1747520362981,12.17522874,2465.4,2464.9,4.05687246]
[1747520363181,12.17522874,2465.4,2465.0,0.89282403]
[1747520364081,4.05631528,2465.3,2465.0,0.89282403]
[1747520364446,12.17519268,2465.4,2465.0,0.89282403]
[1747520365086,8.119,2465.4,2465.0,4.94957056]
[1747520365447,9.38333333,2466.0,2465.1,3.64287207]
[1747520365649,9.38333333,2466.0,2465.6,4.82322665]
[1747520365861,8.116,2466.0,2465.6,4.82322665]
[1747520366180,4.05490971,2466.2,2465.7,4.05564274]
[1747520366380,17.49933333,2466.4,2465.8,4.05542599]
[1747520366581,21.55383504,2466.4,2465.9,4.4912855]
[1747520367144,21.55383374,2466.4,2466.0,4.05515004]
[1747520367350,21.55383374,2466.4,2465.9,4.49131372]
[1747520367685,17.49933333,2466.4,2466.0,4.05502563]
[1747520367987,21.55386916,2466.4,2465.9,4.491336]
[1747520368187,21.55386916,2466.4,2466.0,1.13237249]
[1747520368493,21.55386916,2466.4,2466.0,5.18750346]
[1747520369051,17.49933333,2466.4,2466.1,4.05498147]
[1747520369251,17.49933333,2466.4,2466.1,4.82248147]
[1747520369692,17.49933333,2466.4,2466.1,0.7675]
[1747520369860,21.5539006,2466.4,2466.1,1.00109491]
[1747520370361,17.49933333,2466.4,2466.1,1.00109491]
[1747520370567,21.55383119,2466.4,2466.1,1.00109491]
[1747520371300,17.49933333,2466.4,2466.1,1.00109491]
[1747520371453,21.55389203,2466.4,2466.1,1.00109491]
[1747520371656,4.05474399,2466.3,2466.0,1.13237249]
[1747520371855,21.55390822,2466.4,2466.0,1.13237249]
[1747520373392,17.49933333,2466.4,2466.0,5.18745095]
[1747520373558,21.55383534,2466.4,2466.0,1.13237249]
[1747520373750,21.55383534,2466.4,2466.0,5.18751247]
[1747520375890,21.55383534,2466.4,2466.0,1.13237249]
[1747520376913,21.55383534,2466.4,2466.0,5.18748116]
[1747520377215,17.49933333,2466.4,2466.0,5.18222679]
[1747520377512,17.49933333,2466.4,2466.0,4.05510867]
[1747520378806,21.55383572,2466.4,2466.0,4.05510867]
[1747520379012,17.49933333,2466.4,2466.0,4.05510867]
[1747520380008,8.111,2466.5,2466.2,4.05471683]
[1747520380200,8.111,2466.5,2466.2,4.83361683]
[1747520380915,12.17318259,2466.6,2466.2,4.83361683]
[1747520381209,16.229,2466.6,2466.2,4.83361683]
[1747520381395,20.28323662,2466.6,2466.2,4.83361683]
[1747520381601,4.05433205,2466.5,2466.2,0.7789]
[1747520382411,16.229,2466.6,2466.2,4.8336189]
[1747520382613,16.229,2466.6,2466.2,0.7789]
[1747520382934,8.11,2466.7,2466.3,4.05451077]
[1747520383212,4.05440563,2466.5,2466.2,0.7789]
[1747520383390,4.05424072,2466.6,2466.2,0.7789]
[1747520383589,4.05434434,2466.5,2466.2,0.7789]
[1747520383795,12.16407331,2466.7,2466.2,0.7789]
[1747520384389,4.05416362,2466.6,2466.2,0.7789]
[1747520384590,12.16406368,2466.7,2466.2,4.83371732]
[1747520384919,17.49333333,2467.0,2466.5,4.05423776]
[1747520385217,17.49333333,2467.0,2466.2,6.00014186]
[1747520385218,4.05409258,2466.7,2466.2,6.00014186]
[1747520385587,4.05409553,2466.7,2466.2,4.83357449]
[1747520385788,4.05418327,2466.6,2466.2,0.7789]
[1747520386001,4.05408964,2466.7,2466.2,4.83371088]
[1747520386420,8.108,2466.9,2466.3,4.05464603]
[1747520386586,12.16173939,2466.9,2466.4,4.05441219]
[1747520386789,4.05385079,2466.8,2466.4,4.05441219]
[1747520387020,4.05368224,2466.9,2466.4,4.05434204]
[1747520387189,8.108,2466.8,2466.4,4.05434204]
[1747520387390,8.108,2466.8,2466.5,4.05427465]
[1747520387728,8.008,2466.8,2466.4,4.05445779]
[1747520387936,8.008,2466.8,2466.4,4.94325204]
[1747520388396,4.05372215,2466.9,2466.4,4.94325204]
[1747520388596,8.107,2466.8,2466.4,4.94325204]
[1747520388925,8.107,2466.8,2466.4,0.88879425]
[1747520389226,4.05412765,2466.7,2466.2,4.83366866]
[1747520389735,4.05412765,2466.7,2466.3,0.38674449]
[1747520390629,4.05412765,2466.7,2466.3,4.44139715]
[1747520391632,4.05412765,2466.7,2466.2,4.83367081]
[1747520391829,4.05412765,2466.7,2466.3,4.05462334]
[1747520392735,4.05412765,2466.7,2466.4,0.38714929]
[1747520392939,12.15912765,2466.7,2466.4,0.38714929]
[1747520394031,8.105,2466.7,2466.4,0.38714929]
[1747520395035,12.15901812,2466.7,2466.5,0.38714929]
[1747520395536,8.105,2466.7,2466.5,0.38714929]
[1747520396436,8.105,2466.7,2466.4,0.38714929]
[1747520397335,4.05432799,2466.5,2466.4,0.38714929]
[1747520397502,21.54566132,2466.5,2466.4,0.38714929]
[1747520398336,4.05456957,2466.4,2466.0,0.38714929]
[1747520398545,4.0546693,2466.3,2466.0,0.38714929]
[1747520398746,8.103,2466.2,2466.0,0.38714929]
[1747520399822,8.103,2466.2,2466.1,0.38714929]
[1747520401442,8.103,2466.2,2466.0,0.38714929]
[1747520402653,8.103,2466.2,2466.1,0.38714929]
[1747520403024,12.15782118,2466.2,2466.1,0.38714929]
[1747520404748,4.05525769,2466.0,2465.7,0.38714929]
[1747520406059,4.05525769,2466.0,2465.6,0.38714929]
[1747520406350,8.1,2466.0,2465.7,4.05556544]
[1747520406515,8.1,2466.0,2465.8,4.05547045]
[1747520406719,12.16390717,2466.2,2465.8,4.05547045]
[1747520406720,8.1,2466.1,2465.8,4.05547045]
[1747520406924,8.1,2466.1,2465.8,0.8315]
[1747520407125,8.1,2466.1,2465.8,6.19543331]
[1747520407321,8.1,2466.1,2465.9,1.83361035]
[1747520408844,8.1,2466.1,2465.9,1.44646106]
[1747520409461,12.15506633,2466.1,2465.8,2.13996337]
[1747520409761,4.05545672,2465.9,2465.6,0.48430741]
[1747520410434,4.05545672,2465.9,2465.6,0.38795828]
[1747520411058,12.15505457,2466.1,2465.6,0.38795828]
[1747520411265,12.15505457,2466.1,2465.6,4.44368906]
[1747520411563,12.15505457,2466.1,2465.7,0.61257439]
[1747520411727,12.15505457,2466.1,2465.7,1.00053267]
[1747520412663,4.05518138,2466.0,2465.7,1.00053267]
[1747520413156,8.098,2466.0,2465.8,0.38795828]
[1747520413322,8.098,2466.0,2465.9,0.7767]
[1747520413725,8.098,2466.0,2465.9,4.83201448]
[1747520414061,8.109,2466.2,2465.9,0.7767]
[1747520414271,13.43767348,2466.5,2466.0,4.05500382]
[1747520414484,4.05462702,2466.4,2466.1,0.38795828]
[1747520414637,4.05465721,2466.3,2466.1,0.38795828]
[1747520415342,4.05482118,2466.2,2466.1,0.38795828]
[1747520415767,12.15382118,2466.2,2466.1,0.38795828]
[1747520416280,20.24982118,2466.2,2466.1,0.38795828]
[1747520416478,16.195,2466.2,2466.1,0.38795828]
[1747520416779,20.24982118,2466.2,2465.7,4.05555935]
[1747520416957,20.24982118,2466.2,2465.7,4.8666846]
[1747520417560,8.096,2466.2,2465.9,4.0552885]
[1747520417945,9.38333333,2466.5,2465.9,2.77761174]
[1747520418242,8.096,2466.4,2466.0,4.05508245]
[1747520418466,12.15055992,2466.4,2465.9,6.832833]
[1747520418673,12.15055992,2466.4,2466.0,1.1638747]
[1747520420080,12.15055992,2466.4,2465.6,0.8247]
[1747520420081,8.096,2466.4,2465.6,0.8247]
[1747520420281,4.0552715,2466.0,2465.6,0.8247]
[1747520420645,4.05507939,2466.1,2465.6,4.88047753]
[1747520420858,4.05515957,2466.0,2465.6,4.88047753]
[1747520421077,4.05515957,2466.0,2465.7,0.48804775]
[1747520421258,4.05540427,2465.9,2465.7,0.38797092]
[1747520422180,4.05522192,2466.0,2465.8,0.38797092]
[1747520423186,8.099,2466.1,2465.8,0.38797092]
[1747520423352,12.15400537,2466.1,2465.8,0.38797092]
[1747520423646,12.15400537,2466.1,2465.7,4.05562145]
[1747520423851,4.05515401,2466.0,2465.7,0.84995121]
[1747520425150,4.05515401,2466.0,2465.8,0.38797092]
[1747520425470,12.15408298,2466.1,2465.8,0.38797092]
[1747520425786,4.05516739,2466.0,2465.8,0.38797092]
[1747520425987,12.15406645,2466.1,2465.8,0.38797092]
[1747520426591,4.05516222,2466.0,2465.8,0.38797092]
[1747520426996,4.05516222,2466.0,2465.9,0.38797092]
[1747520428090,12.15408348,2466.1,2465.9,0.38797092]
[1747520428589,4.05515004,2466.0,2465.9,0.38797092]
[1747520428792,12.15407479,2466.1,2465.8,0.38797092]
[1747520429175,4.0552307,2466.0,2465.8,0.38797092]
[1747520430088,12.15404127,2466.1,2465.8,0.38797092]
[1747520430961,12.15404127,2466.1,2465.9,0.38797092]
[1747520432100,12.15404127,2466.1,2466.0,0.38797092]
[1747520434098,12.15404127,2466.1,2465.7,0.38797092]
[1747520434301,4.05515523,2466.0,2465.7,0.38797092]
[1747520435102,4.05515523,2466.0,2465.7,0.92740898]
[1747520435701,4.05515523,2466.0,2465.8,0.38797092]
[1747520436219,8.099,2466.1,2465.8,0.38797092]
[1747520436376,12.15404121,2466.1,2465.8,0.38797092]
[1747520437380,12.15399019,2466.1,2465.8,0.38797092]
[1747520437884,4.05516612,2466.0,2465.8,0.38797092]
[1747520438622,8.099,2466.1,2465.8,0.38797092]
[1747520438815,4.05515004,2466.0,2465.8,0.38797092]
[1747520440681,4.05524618,2466.0,2465.8,0.38797092]
[1747520442197,4.05524618,2466.0,2465.9,0.38797092]
[1747520443057,12.15408117,2466.1,2465.9,0.38797092]
[1747520443522,4.05515004,2466.0,2465.9,0.38797092]
[1747520443682,4.05515004,2466.0,2465.7,0.38797092]
[1747520445610,4.05515004,2466.0,2465.7,1.02544911]
[1747520445816,4.05515004,2466.0,2465.8,0.38797092]
[1747520447317,4.05515004,2466.0,2465.9,0.38797092]
[1747520448433,12.15412677,2466.1,2465.9,0.38797092]
[1747520448613,4.05515004,2466.0,2465.9,0.38797092]
[1747520449127,12.15410221,2466.1,2465.9,0.38797092]
[1747520449425,4.05515004,2466.0,2465.9,0.38797092]
[1747520449800,4.05515004,2466.0,2465.7,0.48430741]
[1747520450001,8.081,2465.9,2465.7,0.48430741]
[1747520451130,8.081,2465.9,2465.8,0.38916436]
[1747520452738,12.13631448,2465.9,2465.8,0.38916436]
[1747520453047,20.13631448,2465.9,2465.8,0.38916436]
[1747520453201,29.74343907,2465.9,2465.8,0.38916436]
[1747520454128,4.05547895,2465.8,2465.7,0.48430741]
[1747520455204,21.43881228,2465.8,2465.7,0.48430741]
[1747520455531,21.66217341,2465.8,2465.7,0.48430741]
[1747520455746,22.21217341,2465.8,2465.7,0.48430741]
[1747520455946,22.21217341,2465.8,2464.2,0.005]
[1747520455947,12.05567654,2465.7,2464.9,0.87296385]
[1747520456112,4.05679513,2465.0,2464.9,0.87296385]
[1747520456313,20.21979513,2465.0,2464.9,0.87296385]
[1747520457226,20.21979513,2465.0,2464.9,0.48430741]
[1747520459310,4.05715325,2464.8,2464.5,0.38865644]
[1747520459526,4.05715325,2464.8,2464.5,1.05736943]
[1747520459824,4.05745354,2464.6,2464.5,0.38865644]
[1747520460020,27.88066254,2464.6,2464.5,0.38865644]
[1747520460223,33.96328387,2464.6,2464.5,0.38865644]
[1747520460463,35.40999862,2464.6,2464.5,0.38865644]
[1747520460833,4.60778282,2464.4,2464.3,0.005]
[1747520461039,30.14661615,2464.4,2464.3,0.005]
[1747520461566,21.43628082,2464.3,2464.2,0.48930741]
[1747520461725,43.66112082,2464.3,2464.2,0.48930741]
[1747520461926,43.26699082,2464.3,2464.2,0.48930741]
[1747520462266,44.03885408,2464.3,2464.2,0.48930741]
[1747520462658,44.03885408,2464.3,2464.2,0.005]
[1747520463332,40.29035708,2464.3,2464.2,0.005]
[1747520464861,40.06849382,2464.3,2464.2,0.005]
[1747520465275,20.22294749,2464.3,2464.2,0.005]
[1747520465571,28.22294749,2464.3,2464.2,0.005]
[1747520465784,39.31598624,2464.3,2464.2,0.005]
[1747520466462,30.22166224,2464.3,2464.2,0.005]
[1747520466666,14.05466224,2464.3,2464.2,0.005]
[1747520466871,43.10178124,2464.3,2464.2,0.005]
[1747520467390,43.10178124,2464.3,2463.7,1.44671475]
[1747520467391,8.077,2464.3,2463.7,1.44671475]
[1747520467562,12.13411216,2464.2,2463.8,0.804]
[1747520467886,4.05735654,2464.7,2464.1,1.44671475]
[1747520467887,8.076,2464.7,2464.1,1.44671475]
[1747520468084,8.076,2464.7,2464.3,1.44671475]
[1747520468259,8.076,2464.7,2464.2,0.804]
[1747520468260,4.0578564,2464.4,2464.2,0.804]
[1747520468580,0.55,2464.3,2463.4,1.44671475]
[1747520468780,4.0587547,2463.9,2463.3,2.25071475]
[1747520468981,4.0587547,2463.9,2463.5,1.44671475]
[1747520469502,4.05819391,2464.2,2463.7,4.05880647]
[1747520469799,4.05819391,2464.2,2463.6,3.61288073]
[1747520469800,4.05779377,2464.4,2463.9,4.05851051]
[1747520469949,12.13381134,2464.4,2464.0,0.8303]
[1747520470145,4.05812811,2464.2,2464.0,0.8303]
[1747520470493,4.05827685,2464.1,2464.0,0.8303]
[1747520471051,4.0581772,2464.2,2464.0,0.8303]
[1747520471251,4.05827685,2464.1,2464.0,0.8303]
[1747520471592,4.05802289,2464.3,2464.0,0.8303]
[1747520472706,4.05812423,2464.2,2464.0,0.8303]
[1747520473685,12.13381406,2464.4,2464.0,0.8303]
[1747520473686,4.05827685,2464.1,2464.0,0.8303]
[1747520476784,4.05860627,2463.9,2463.1,0.7996]
[1747520476972,4.05860627,2463.9,2463.2,0.49763234]
[1747520476973,4.05913146,2463.6,2463.2,0.49763234]
[1747520477186,4.05913146,2463.6,2463.2,4.55738558]
[1747520477606,4.05913146,2463.6,2463.2,0.49763234]
[1747520477791,4.05898382,2463.7,2463.2,0.49763234]
[1747520477996,4.05921985,2463.6,2463.2,0.49763234]
[1747520478379,4.05899946,2463.7,2463.2,4.55737515]
[1747520478584,4.05899946,2463.7,2463.3,0.7996]
[1747520478798,12.13182567,2463.8,2463.3,4.859066]
[1747520478962,8.0,2464.4,2463.9,4.05851734]
[1747520479165,8.073,2464.3,2464.0,0.7996]
[1747520479413,8.073,2464.4,2464.0,0.7996]
[1747520479965,4.05795046,2464.3,2464.0,0.7996]
[1747520480682,4.05812858,2464.2,2464.0,0.7996]
[1747520481012,12.13088755,2464.4,2464.0,0.7996]
[1747520481187,4.05803265,2464.3,2464.0,0.7996]
[1747520481567,8.0,2464.7,2464.0,1.28542941]
[1747520481798,4.05778282,2464.4,2464.0,1.28542941]
[1747520483424,4.05811694,2464.2,2464.0,1.28542941]
[1747520483626,4.05811694,2464.2,2464.0,0.7996]
[1747520483825,4.05778282,2464.4,2464.0,0.7996]
[1747520483997,16.071,2464.5,2464.0,0.7996]
[1747520484197,4.05811689,2464.2,2464.0,0.7996]
[1747520484629,4.05827685,2464.1,2464.0,0.7996]
[1747520485217,4.05712326,2464.9,2463.5,14.91678047]
[1747520485218,12.05737759,2464.7,2464.2,0.8306]
[1747520485386,12.12754899,2464.6,2464.2,0.8306]
[1747520485910,4.05762558,2464.5,2464.2,0.8306]
[1747520487226,4.05789701,2464.4,2464.2,0.8306]
[1747520490624,4.05657567,2465.2,2464.2,0.8306]
[1747520490857,4.05657567,2465.2,2465.0,0.8246]
[1747520490858,8.074,2465.2,2465.0,0.8246]
[1747520491124,4.0555158,2465.8,2465.0,0.8246]
[1747520491125,16.141,2465.6,2465.1,4.05663056]
[1747520491318,20.19689804,2465.6,2465.1,4.05663056]
[1747520491527,20.19689804,2465.6,2465.2,4.0564647]
[1747520491729,1.2,2465.4,2465.1,4.05652552]
[1747520491897,1.2,2465.4,2465.0,4.88138948]
[1747520491898,4.05642523,2465.3,2465.0,0.8246]
[1747520492090,4.05731908,2464.7,2464.6,0.8246]
[1747520492728,4.05731908,2464.7,2464.2,0.8246]
[1747520492930,8.0,2464.8,2464.2,0.8246]
[1747520493131,4.05765094,2464.5,2464.2,0.8246]
[1747520493296,4.05779027,2464.4,2464.2,0.8246]
[1747520493798,4.05770974,2464.5,2464.2,0.8246]
[1747520493999,4.0575015,2464.6,2464.2,0.8246]
[1747520494887,4.05763268,2464.5,2464.2,0.8246]
[1747520495737,4.05779311,2464.4,2464.2,0.8246]
[1747520496029,4.0576943,2464.5,2464.2,0.8246]
[1747520497536,12.12247988,2464.6,2464.2,0.8246]
[1747520497715,4.05762875,2464.5,2464.2,0.8246]
[1747520498395,4.05745184,2464.7,2464.2,5.37088588]
[1747520498727,12.12045184,2464.7,2464.2,5.37088588]
[1747520499717,4.05754713,2464.6,2464.2,0.8246]
[1747520499916,12.12035587,2464.7,2464.2,0.8246]
[1747520500122,8.063,2464.7,2464.3,4.05787469]
[1747520500425,8.063,2464.7,2464.5,0.78]
[1747520501143,4.05699129,2464.9,2464.5,0.78]
[1747520501300,4.05717207,2464.8,2464.5,0.78]
[1747520501497,8.062,2464.8,2464.5,0.78]
[1747520501804,4.05745826,2464.6,2464.2,4.05809108]
[1747520502006,5.25745826,2464.6,2464.2,4.05809108]
[1747520502349,5.25745826,2464.6,2464.1,4.83818105]
[1747520502644,1.2,2464.6,2464.1,2.8337888]
[1747520502847,4.05736181,2464.7,2464.3,4.05793803]
[1747520503443,4.05736181,2464.7,2464.3,5.50626751]
[1747520503651,4.05736181,2464.7,2464.3,1.44832948]
[1747520503852,12.11819058,2464.8,2464.3,5.50617195]
[1747520504069,8.061,2464.8,2464.4,4.8377417]
[1747520504359,13.43530183,2464.9,2464.5,4.05754849]
[1747520504564,9.37833333,2464.9,2464.6,4.05735889]
[1747520504737,12.11791691,2465.0,2464.7,2.24782948]
[1747520504937,4.05729268,2464.7,2464.5,0.7995]
[1747520505335,12.11780574,2465.0,2464.2,0.7995]
[1747520505522,8.061,2465.0,2464.2,0.7995]
[1747520505724,4.05686571,2465.0,2464.4,4.05774148]
[1747520505967,8.06,2465.0,2464.6,4.0574436]
[1747520506466,4.05704267,2464.9,2464.5,2.24782948]
[1747520507273,12.1168634,2465.0,2464.5,6.3054383]
[1747520507470,4.05703951,2464.9,2464.5,2.24782948]
[1747520508694,8.061,2465.1,2464.5,2.24782948]
[1747520508982,17.37833333,2465.2,2465.0,4.05666735]
[1747520508983,9.37833333,2465.2,2465.0,4.05666735]
[1747520509136,18.97432948,2466.1,2465.1,2.24782948]
[1747520509137,4.05554491,2465.8,2465.1,2.24782948]
[1747520509330,4.05622545,2465.4,2465.1,2.24782948]
[1747520509750,4.05613693,2465.4,2465.1,2.24782948]
[1747520510071,1.2,2465.6,2465.3,4.05621225]
[1747520510230,12.11465196,2465.7,2465.2,4.056466]
[1747520510431,12.11465196,2465.7,2465.2,4.05631779]
[1747520510630,12.11465196,2465.7,2465.2,4.05639111]
[1747520510843,4.05583362,2465.6,2465.2,4.05639111]
[1747520511238,4.05580791,2465.6,2465.1,4.85602719]
[1747520511587,4.05610037,2465.5,2465.1,0.7995]
[1747520511908,4.05610037,2465.5,2465.1,4.85612751]
[1747520512759,4.05610037,2465.5,2465.1,0.7995]
[1747520516503,4.05616973,2465.4,2465.1,0.7995]
[1747520516671,1.2,2465.3,2465.1,0.7995]
[1747520516998,4.05616973,2465.4,2465.1,0.7995]